Workbook

Sheet ATIVO
B1: 1 | C1: 2 | D1: 3 | E1: 4 | F1: 5 | G1: 6 | H1: 7 | I1: 8 | J1: 9 | K1: 10 | L1: 11 | M1: 12 | N1: 13
B2: Valores em R$ mil | C2: 2010-12-31 | D2: 2011-12-31 | E2: 2012-12-31 | F2: 2013-12-31 | G2: 2014-12-31 | H2: 2015-12-31 | I2: 2016-12-31 | J2: 2017-12-31 | K2: 2018-12-31 | L2: 2019-12-31 | M2: 2020-12-31 | N2: 2021-12-31
B3: TOTAL DO ATIVO (Consolidado) | C3: =C4+C24 -> 1133069 | D3: 1132142 | E3: 1067195 | F3: 1131544 | G3: 1094219 | H3: 1098255 | I3: 1125762 | J3: 1245025 | K3: 1338612 | L3: 1500335 | M3: 1711417 | N3: 1632597
B4: Total do Ativo Circulante | C4: =SUM(C5:C23) -> 106810 | D4: 169472 | E4: 215488 | F4: 244629 | G4: 197903 | H4: 180651 | I4: 222288 | J4: 273816 | K4: 417979 | L4: 601235 | M4: 731880 | N4: =SUM(N5:N23) -> 524213
B5: Caixa e equivalentes de caixa | C5: 21436 | D5: 81933 | E5: 56502 | F5: 80708 | G5: 21451 | H5: 50145 | I5: 80279 | J5: 136214 | K5: 232433 | L5: 412922 | M5: 518714 | N5: 311072
B6: Revendedores | C6: 11371 | D6: 14234 | E6: 15472 | F6: 17477 | G6: 11050 | H6: 16337 | I6: 29211 | J6: 18153 | K6: 38502 | L6: 37979 | M6: 40805 | N6: 40946
B7: Consumidores | C7: 2116 | D7: 2473 | E7: 2362 | F7: 1492 | G7: 1560 | H7: 846 | I7: 4191 | J7: 466 | L7: 0 | M7: 0 | N7: -
B8: Valores a receber - Energia livre | C8: 2104 | D8: 2040 | E8: 2040 | F8: 0 | G8: 0 | H8: 0 | I8: 0 | J8: 0 | K8: 0 | L8: 0 | M8: 0 | N8: -
B9: Energia de curto prazo - CCEE | C9: 1297 | D9: 4816 | E9: 558 | F9: 0 | G9: 0 | H9: 0 | I9: 0 | J9: 0 | K9: 0 | L9: 0 | M9: 0 | N9: -
B10: Ativo financeiro indenizável | C10: 0 | D10: 0 | E10: 0 | F10: 0 | G10: 0 | H10: 0 | I10: 0 | J10: 323 | K10: 13357 | L10: 14990 | M10: 4901 | N10: 9064
B11: Serviços - Canal Pinheiros | C11: 0 | D11: 0 | E11: 0 | F11: 21803 | G11: 8212 | H11: 8115 | I11: 1774 | J11: 3463 | K11: 3174 | L11: 0 | M11: 0 | N11: -
B12: Alienação de bens e direitos | C12: 0 | D12: 1762 | E12: 221 | F12: 645 | G12: 6035 | H12: 835 | I12: 263 | J12: 148 | K12: 0 | L12: 0 | M12: 0 | N12: -
B13: Adiantamento a fornecedores | C13: 0 | D13: 0 | E13: 1075 | F13: 0 | G13: 0 | H13: 0 | I13: 0 | J13: 0 | K13: 0 | L13: 0 | M13: 0 | N13: -
B14: IR e CSLL a recuperar | C14: 14260 | D14: 0 | E14: 0 | F14: 14008 | G14: 0 | H14: 2784 | I14: 11 | J14: 1331 | K14: 2313 | L14: 2946 | M14: 11245 | N14: 3591
B15: Tributos e contribuições sociais compensáveis | C15: 4323 | D15: 3350 | E15: 11349 | F15: 1438 | G15: 1512 | H15: 1712 | I15: 1552 | J15: 1123 | K15: 1641 | L15: 1199 | M15: 1420 | N15: 626
B16: Estoque | C16: 2460 | D16: 2630 | E16: 2111 | F16: 2073 | G16: 2141 | H16: 2099 | I16: 1965 | J16: 1789 | K16: 1930 | L16: 1609 | M16: 1865 | N16: 1847
B17: Indenização Porto Góes | C17: 0 | D17: 0 | E17: 37690 | F17: 0 | G17: 0 | H17: 0 | I17: 0 | J17: 0 | K17: 0 | L17: 0 | M17: 0 | N17: -
B18: Despesas antecipadas | C18: 98 | D18: 196 | E18: 65 | F18: 101 | G18: 188 | H18: 236 | I18: 214 | J18: 245 | K18: 1577 | L18: 3000 | M18: 4550 | N18: 917
B19: Arrendamento UTE Piratininga | C19: 32390 | D19: 35283 | E19: 44991 | F19: 42866 | G19: 71990 | H19: 75623 | I19: 85141 | J19: 79364 | K19: 85337 | L19: 91558 | M19: 112714 | N19: 132732
B20: Ativo financeiro - Sabesp | C20: 0 | D20: 0 | E20: 0 | F20: 0 | G20: 0 | H20: 0 | I20: 0 | J20: 15545 | K20: 16129 | L20: 16824 | M20: 17584 | N20: 7868
B21: Cauções e depósitos vinculados | C21: 7769 | D21: 6637 | E21: 31211 | F21: 25295 | G21: 10123 | H21: 13033 | I21: 10372 | J21: 10161 | K21: 10999 | L21: 11671 | M21: 14466 | N21: 12110
B22: Provisão para créditos de liquidação duvidosa | C22: -4751 | D22: -5271 | E22: -8600 | F22: 0 | G22: 0 | H22: 0 | I22: 0 | J22: 0 | K22: 0 | L22: 0 | M22: 0 | N22: -
B23: Outros créditos | C23: 11937 | D23: 19389 | E23: 18441 | F23: =36723 -> 36723 | G23: 63641 | H23: 8886 | I23: 7315 | J23: 5491 | K23: 10587 | L23: 6537 | M23: 3616 | N23: 3440
B24: Total do Ativo Não Circulante | C24: =SUM(C26:C35) -> 1026259 | D24: 962670 | E24: 851707 | F24: 886915 | G24: 896316 | H24: 917604 | I24: 903474 | J24: 971209 | K24: 920633 | L24: 899100 | M24: 979537 | N24: 1108384
B25: Ativo Realizável a Longo Prazo | C25: =SUM(C26:C32) -> 461997 | D25: 449001 | E25: 481776 | F25: 789562 | G25: 706067 | H25: 737917 | I25: 730859 | J25: 792376 | K25: 693794 | L25: =SUM(L26:L32) -> 669469
B26: Arrendamento UTE Piratininga | C26: 421073 | D26: 423396 | E26: 433962 | F26: 432236 | G26: 392959 | H26: 404984 | I26: 391257 | J26: 352015 | K26: 328676 | L26: 294160 | M26: 283387 | N26: 232290
B27: Ativo financeiro - Sabesp | C27: 0 | D27: 0 | E27: 0 | F27: 0 | G27: 0 | H27: 13879 | I27: 0 | J27: 96915 | K27: 91447 | L27: 85208 | M27: 77677 | N27: 83580
B28: IR e CSLL diferidos | C28: 0 | D28: 0 | E28: 0 | F28: 0 | G28: 0 | H28: 0 | I28: 0 | J28: 0 | K28: 0 | L28: 0 | M28: 48052 | N28: 124665
B29: Cauções e depósitos vinculados | C29: 8839 | D29: 10955 | E29: 4691 | F29: 8536 | G29: 9400 | I29: 15806 | J29: 15336 | K29: 15597 | L29: 17067 | M29: 25329 | N29: 32040
B30: Ativo financeiro indenizável | C30: 0 | D30: 0 | E30: 0 | F30: 52574 | G30: 29330 | H30: 40716 | I30: 46386 | J30: 53683 | K30: 62419 | L30: 77660 | M30: 112866 | N30: 202073
B31: Ativo reversível da concessão | C31: 0 | D31: 0 | E31: 0 | F31: 296216 | G31: 274378 | H31: 275273 | I31: 275273 | J31: 273218 | K31: 195374 | L31: 195374 | M31: 195374 | N31: 195374
B32: Outros créditos | C32: 32085 | D32: 14650 | E32: 43123 | F32: 0 | G32: 0 | H32: 3065 | I32: 2137 | J32: 1209 | K32: 281 | L32: 0 | M32: 0 | N32: -
B33: Investimentos | C33: 1390 | D33: 1391 | E33: 1389 | F33: 1390 | G33: 1390 | H33: 1390 | I33: 1390 | J33: 1390 | K33: 1390 | L33: 1390 | M33: 1390 | N33: 1392
B34: Imobilizado | C34: 562236 | D34: 511394 | E34: 367977 | F34: 95560 | G34: 188311 | H34: 176037 | I34: 169461 | J34: 174876 | K34: 222987 | L34: 222237 | M34: 227463 | N34: 226232
B35: Intangível | C35: 636 | D35: 884 | E35: 565 | F35: 403 | G35: 548 | H35: 2260 | I35: 1764 | J35: 2567 | K35: 2462 | L35: 6004 | M35: 7999 | N35: 10738
N37: =N3-PASSIVO_PL!#REF! -> 
B38: Observações: (1) Em 01/01/2013 a EMAE prorrogou a concessão das Usinas Henry Borden, Porto Góes e Rasgão nos termos da Lei n.º 12.783/13 (regime de cotas) (2) A partir de julho de 2018, a receita das Usinas prorrogadas no regime de cotas foi incrementada com recursos para realização de investimentos na concessão (GAG Melhorias) (3) As informações disponibilizadas nessa planilha são para simples referência e reproduzem os dados publicados pela EMAE. A utilização dos dados é de inteira responsabilidade do usuário e não exclui a necessidade do usuário consultar as Demonstrações Financeiras da Companhia, arquivadas na Comissão de Valores Mobiliários e no site da EMAE.

Sheet PASSIVO_PL
B1: 1 | C1: 2 | D1: 3 | E1: 4 | F1: 5 | G1: 6 | H1: 7 | I1: 8 | J1: 9 | K1: 11 | L1: 12 | M1: 13
B2: Valores em R$ mil | C2: 2010-12-31 | D2: 2011-12-31 | E2: 2012-12-31 | F2: 2013-12-31 | G2: 2014-12-31 | H2: 2015-12-31 | I2: 2016-12-31 | J2: 2017-12-31 | K2: 2018-12-31 | L2: 2019-12-31 | M2: 2020-12-31 | N2: 2021-12-31
B3: TOTAL DO PASSIVO E DO PATRIMÔNIO LÍQUIDO (Consolidado) | C3: =SUM(C4,C22,C34,) -> 1133069 | D3: 1132142 | E3: 1067195 | F3: 1131544 | G3: 1094219 | H3: 1098255 | I3: 1125762 | J3: 1245025 | K3: 1338612 | L3: 1500335 | M3: 1711417 | N3: =SUM(N4,N22,N34,) -> 1632597
B4: Total do Passivo Circulante | C4: =SUM(C5:C21) -> 86033 | D4: 139687 | E4: 75244 | F4: 92824 | G4: 81430 | H4: 70240 | I4: 94413 | J4: 96414 | K4: 137179 | L4: 124657 | M4: 433571 | N4: =SUM(N5:N21) -> 129178
B5: Fornecedores | C5: 3110 | D5: 9581 | E5: 7635 | F5: 6631 | G5: 8332 | H5: 4742 | I5: 5084 | J5: 6923 | K5: 6763 | L5: 4627 | M5: 4656 | N5: 6713
B6: Financiamento | C6: 19371 | D6: 8509 | E6: 0 | F6: 0 | G6: 2959 | H6: 6549 | I6: 6671 | J6: 7312 | K6: 6744 | L6: 5208 | M6: 66361 | N6: -
B7: Folha de pagamento | C7: 5284 | D7: 5802 | E7: 4713 | F7: 4164 | G7: 5198 | H7: 4824 | I7: 5382 | J7: 6204 | K7: 5491 | L7: 3257 | M7: 4593 | N7: 4724
B8: Obrigações estimadas - folha de pagamento | C8: 12270 | D8: 11886 | E8: 11081 | F8: 10990 | G8: 11495 | H8: 5758 | I8: 6220 | J8: 5990 | K8: 10177 | L8: 14491 | M8: 15982 | N8: 12335
B9: Entidade de previdência a empregados | C9: 20506 | D9: 43401 | E9: 22789 | F9: 20980 | G9: 22114 | H9: 16833 | I9: 32784 | J9: 11348 | K9: 11956 | L9: 4915 | M9: 31744 | N9: 56890
B10: Tributos e contribuições sociais | C10: 9564 | D10: 7998 | E10: 4756 | F10: 4179 | G10: 4605 | H10: 4426 | I10: 4880 | J10: 4368 | K10: 6309 | L10: 5676 | M10: 5718 | N10: 6711
B11: Imposto de renda e contribuição social a recolher | C11: 0 | D11: 0 | E11: 0 | F11: 0 | G11: 3485 | H11: 78 | I11: 143 | J11: 0 | K11: 0 | L11: 0 | M11: 0 | N11: -
B12: Dividendos e juros sobre capital próprio | C12: 3190 | D12: 86 | E12: 86 | F12: 1509 | G12: 87 | H12: 3716 | I12: 16010 | J12: 34473 | K12: 27915 | L12: 26880 | M12: 237990 | N12: 9138
B13: Serviços - Canal Pinheiros | C13: 0 | D13: 0 | F13: 0 | G13: 0 | H13: 0 | I13: 0 | J13: 0 | K13: 0 | L13: 53 | M13: 0 | N13: -
B14: Obrigações Setoriais | C14: 6746 | D14: 7199 | E14: 7855 | F14: 9529 | G14: 7480 | H14: 5637 | I14: 5806 | J14: 5504 | K14: 5200 | L14: 6445 | M14: 4490 | N14: 2654
B15: Obrigações Especiais - RGR | C15: 0 | D15: 0 | E15: 0 | F15: 0 | G15: 0 | H15: 0 | I15: 0 | J15: 1801 | K15: 1801 | L15: 1801 | M15: 1801 | N15: 1801
B16: Cauções e depósitos vinculados | C16: 0 | D16: 40000 | E16: 872 | F16: 19803 | G16: 8325 | H16: 7178 | I16: 6633 | J16: 6633 | K16: 10638 | L16: 11095 | M16: 11288 | N16: 11639
B17: Encargos de uso da rede elétrica | C17: 2002 | D17: 296 | E17: 647 | F17: 177 | G17: 172 | H17: 200 | I17: 190 | J17: 200 | K17: 199 | L17: 205 | M17: 196 | N17: 171
B18: Energia de curto prazo - CCEE | C18: 52 | D18: 0 | E18: 1419 | F18: 0 | G18: 0 | H18: 0 | I18: 0 | J18: 0 | K18: 0 | L18: 0 | M18: 0 | N18: -
B19: Outras obrigações - Investimentos na concessão | C19: 0 | D19: 0 | E19: 0 | F19: 0 | G19: 0 | H19: 0 | I19: 0 | J19: 0 | K19: 34503 | L19: 38410 | M19: 38200 | N19: 9064
B20: Obrigação Comgás | C20: 0 | D20: 0 | E20: 0 | F20: 0 | G20: 0 | H20: 0 | I20: 0 | J20: 0 | K20: 0 | L20: 0 | M20: 481 | N20: 502
B21: Outros passivos | C21: 3938 | D21: 4929 | E21: 13391 | F21: 14862 | G21: 7178 | H21: 10299 | I21: 4610 | J21: 5658 | K21: 9483 | L21: 1594 | M21: 10071 | N21: 6836
B22: Total do Passivo Não Circulante | C22: =SUM(C23:C33) -> 234336 | D22: 220570 | E22: 374176 | F22: 286049 | G22: 332235 | H22: 267308 | I22: 308410 | J22: 328736 | K22: 332578 | L22: 385453 | M22: 559333 | N22: =SUM(N23:N33) -> 765685
B23: Financiamento | C23: 8283 | D23: 0 | E23: 29893 | F23: 67815 | G23: 100190 | H23: 90453 | I23: 85054 | J23: 78660 | K23: 72999 | L23: 67976 | M23: 0 | N23: -
B24: Entidade de previdência a empregados | C24: 55630 | D24: 23578 | E24: 117165 | F24: 28716 | G24: 54871 | H24: 7827 | I24: 76914 | J24: 80608 | K24: 119699 | L24: 44071 | M24: 308005 | N24: 395592
B25: Imposto de renda e contribuição social diferidos | C25: 115057 | D25: 118892 | E25: 127811 | F25: 119625 | G25: 97649 | H25: 108810 | I25: 77832 | J25: 99029 | K25: 33323 | L25: 33803 | M25: 0 | N25: -
B26: Outras obrigações - Investimentos na concessão | C26: 0 | D26: 0 | E26: 0 | F26: 0 | G26: 0 | H26: 0 | I26: 0 | J26: 0 | K26: 35126 | L26: 169868 | M26: 166275 | N26: 274347
B27: Obrigação Comgás | M27: 9993 | N27: 9924
B28: Obrigações Setoriais | C28: 769 | D28: 769 | E28: 769 | F28: 769 | G28: 769 | H28: 769 | I28: 769 | J28: 769 | K28: 769 | L28: 769 | M28: 769 | N28: 769
B29: Tributos e contribuições sociais | C29: 444 | D29: 306 | E29: 216 | F29: 126 | G29: 37 | H29: 0 | I29: 0 | J29: 0 | K29: 0 | L29: 0 | M29: 0 | N29: -
B30: Provisões para riscos trabalhistas, cíveis e tributários | C30: 35751 | D30: 38638 | E30: 31462 | F30: 34971 | G30: 52279 | H30: 43247 | I30: 51639 | J30: 55269 | K30: 58061 | L30: 58165 | M30: 65291 | N30: 77853
B31: Provisão para custos socioambientais | C31: 2200 | D31: 17825 | E31: 50658 | F31: 17825 | G31: 10238 | H31: 0 | I31: 0 | J31: 0 | K31: 0 | L31: 0 | M31: 0 | N31: -
B32: Obrigações Especiais - RGR | C32: 16202 | D32: 16202 | E32: 16202 | F32: 16202 | G32: 16202 | H32: 16202 | I32: 16202 | J32: 14401 | K32: 12601 | L32: 10801 | M32: 9000 | N32: 7200
B33: Outras provisões | C33: - | D33: 4360 | E33: 0 | F33: 0 | G33: 0 | H33: 0 | I33: 0 | J33: 0 | K33: 0 | L33: 0 | M33: 0 | N33: 0
B34: Patrimônio Líquido | C34: =SUM(C35:C40) -> 812700 | D34: =SUM(D35:D40) -> 771885 | E34: 617775 | F34: 752671 | G34: 680554 | H34: 760707 | I34: 722939 | J34: 819875 | K34: 868855 | L34: 990225 | M34: 718513 | N34: 737734
B35: Capital social | C35: 285411 | D35: 285411 | E35: 285411 | F35: 285411 | G35: 285411 | H35: 285411 | I35: 285411 | J35: 285411 | K35: 285411 | L35: 285411 | M35: 285411 | N35: 285411
B36: Reservas de capital | C36: 387130 | D36: 387130 | E36: 387130 | F36: 387130 | G36: 387130 | H36: 387130 | I36: 387130 | J36: 387130 | K36: 387130 | L36: 387130 | M36: 387130 | N36: 387130
B37: Outros resultados abrangentes | C37: 0 | D37: 0 | E37: 1605 | F37: 57570 | G37: 16886 | H37: 40878 | I37: -35947 | J37: -24877 | K37: -47857 | L37: 8832 | M37: -186123 | N37: -259534
B38: Reservas de lucros | C38: 140159 | D38: 120584 | E38: 0 | F38: 18290 | G38: 0 | H38: 47288 | I38: 86345 | J38: 172211 | K38: 244171 | L38: 308852 | M38: 218095 | N38: 319867
B39: Dividendo adicional proposto | C39: 0 | D39: 0 | E39: 0 | F39: 4270 | G39: 0 | H39: 0 | I39: 0 | J39: 0 | K39: 0 | L39: 0 | M39: 14000 | N39: 4860
B40: Lucros (Prejuízos) acumulados | C40: 0 | D40: -21240 | E40: -56371 | F40: 0 | G40: -8873 | H40: 0 | I40: 0 | J40: 0 | K40: 0 | L40: 0 | M40: 0 | N40: 0
B43: Observações: (1) Em 01/01/2013 a EMAE prorrogou a concessão das Usinas Henry Borden, Porto Góes e Rasgão nos termos da Lei n.º 12.783/13 (regime de cotas) (2) A partir de julho de 2018, a receita das Usinas prorrogadas no regime de cotas foi incrementada com recursos para realização de investimentos na concessão (GAG Melhorias) (3) As informações disponibilizadas nessa planilha são para simples referência e reproduzem os dados publicados pela EMAE. A utilização dos dados é de inteira responsabilidade do usuário e não exclui a necessidade do usuário consultar as Demonstrações Financeiras da Companhia, arquivadas na Comissão de Valores Mobiliários e no site da EMAE.

Sheet DRE
B1: 1 | C1: 2 | D1: 3 | E1: 4 | F1: 5 | G1: 6 | H1: 7 | I1: 8 | J1: 9 | K1: 10 | L1: 11 | M1: 13
B2: Valores em R$ mil | C2: 2010-12-31 | D2: 2011-12-31 | E2: 2012-12-31 | F2: 2013-12-31 | G2: 2014-12-31 | H2: 2015-12-31 | I2: 2016-12-31 | J2: 2017-12-31 | K2: 2018-12-31 | L2: 2019-12-31 | M2: 2020-12-31 | N2: 2021-12-31
B3: LUCRO (PREJUÍZO) LÍQUIDO DO EXERCÍCIO (Consolidado) | C3: =SUM(C16:C18) -> 13974 | D3: =SUM(D16:D18) -> -40815 | E3: -125253 | F3: 42011 | G3: -27163 | H3: 59790 | I3: 54980 | J3: 119146 | K3: 101517 | L3: 92636 | M3: 198485 | N3: 149918
B4: Resultado Operacional Bruto | C4: =C5+C6 -> -49375 | D4: =D5+D6 -> -58986 | E4: =E5+E6 -> -17687 | F4: 21780 | G4: -6776 | H4: 35501 | I4: 32925 | J4: 23242 | K4: 61167 | L4: 83479 | M4: 226119 | N4: 144912
B5: Receita Operacional Líquida | C5: 142781 | D5: 164093 | E5: 174509 | F5: 202697 | G5: 151102 | H5: 198444 | I5: 206607 | J5: 209510 | K5: 316417 | L5: 439003 | M5: 447131 | N5: 529024
B6: Custo do Serviço de Energia Elétrica | C6: -192156 | D6: -223079 | E6: -192196 | F6: -180917 | G6: -157878 | H6: -162943 | I6: -173682 | J6: -186268 | K6: -255250 | L6: -355524 | M6: -221012 | N6: -384112
B7: Despesas Operacionais | C7: =SUM(C8:C10) -> -35461 | D7: =SUM(D8:D10) -> -72018 | E7: -113557 | F7: =SUM(F9:F10) -> -57918 | G7: =SUM(G9:G10) -> -80909 | H7: =SUM(H9:H10) -> -56436 | I7: =SUM(I9:I10) -> -33315 | J7: =SUM(J9:J10) -> 87274 | K7: -59870 | L7: -48619 | M7: =SUM(M9:M10) -> -83005 | N7: =SUM(N9:N10) -> -88781
B8: Custo do serviço prestado a terceiros | C8: -826 | D8: -1075 | E8: -1471 | F8: 0 | G8: 0 | H8: 0 | I8: 0 | J8: 0 | K8: 0 | L8: 0 | M8: 0
B9: Despesas gerais e administrativas | C9: -35125 | D9: -37082 | E9: -39588 | F9: -44775 | G9: -42399 | H9: -44981 | I9: -36210 | J9: -40887 | K9: -39522 | L9: -47693 | M9: -80897 | N9: -93290
B10: Outras receitas e despesas | C10: 490 | D10: -33861 | E10: -72498 | F10: -13143 | G10: -38510 | H10: -11455 | I10: 2895 | J10: 128161 | K10: -20348 | L10: -926 | M10: -2108 | N10: 4509
B11: Lucro (Prejuízo) Antes do Resultado Financeiro | C11: =SUM(C5:C7) -> -84836 | D11: -131004 | E11: -131244 | F11: -36138 | G11: -87685 | H11: -20935 | I11: -390 | J11: 110516 | K11: 1297 | L11: 34860 | M11: 143114 | N11: 56131
B12: Resultado Financeiro
B13: Receitas | C13: 38530 | D13: 39501 | E13: =36118-19801 -> 16317 | F13: 39590 | G13: 38369 | H13: 33176 | I13: 33307 | J13: 36103 | K13: 39056 | L13: 41983 | M13: 32542 | N13: 31684
B14: Despesas | C14: -2279 | D14: -2065 | E14: -1730 | F14: -1659 | G14: -1955 | H14: -10250 | I14: -9782 | J14: -8928 | K14: -11859 | L14: -7610 | M14: -5462 | N14: -2510
B15: Variações monetárias líquidas | C15: 80445 | D15: 73257 | E15: 4097 | F15: 41183 | G15: 34362 | H15: 64103 | I15: 54351 | J15: 18503 | K15: 55020 | L15: 54565 | M15: 100852 | N15: 104825
B16: Lucro (Prejuízo) Antes do IR/CSLL | C16: =SUM(C11:C15) -> 31860 | D16: =SUM(D11:D15) -> -20311 | E16: -112560 | F16: 42976 | G16: -16909 | H16: 66094 | I16: 77486 | J16: 156194 | K16: 83514 | L16: 123798 | M16: =SUM(M11:M15) -> 271046 | N16: =SUM(N11:N15) -> 190130
B17: IR/CSLL Correntes | C17: -4888 | D17: -16669 | E17: -3774 | F17: -466 | G17: -11271 | H17: -7501 | I17: -17933 | J17: -21553 | K17: -35865 | L17: -59885 | M17: -53985 | N17: -79007
B18: IR/CSLL Diferidos | C18: -12998 | D18: -3835 | E18: -8919 | F18: -499 | G18: 1017 | H18: 1197 | I18: -4573 | J18: -15495 | K18: 53868 | L18: 28723 | M18: -18576 | N18: 38795
B22: Observações: (1) Em 01/01/2013 a EMAE prorrogou a concessão das Usinas Henry Borden, Porto Góes e Rasgão nos termos da Lei n.º 12.783/13 (regime de cotas) (2) A partir de julho de 2018, a receita das Usinas prorrogadas no regime de cotas foi incrementada com recursos para realização de investimentos na concessão (GAG Melhorias) (3) As informações disponibilizadas nessa planilha são para simples referência e reproduzem os dados publicados pela EMAE. A utilização dos dados é de inteira responsabilidade do usuário e não exclui a necessidade do usuário consultar as Demonstrações Financeiras da Companhia, arquivadas na Comissão de Valores Mobiliários e no site da EMAE.
